bitfinex/quotes_BTCUSD_20241020
["timestamp","ask_amount","ask_price","bid_price","bid_amount"]
[1729387161257,0.79198641,68223.0,68222.0,1.91560417]
[1729387161740,0.7482696,68223.0,68222.0,1.91560417]
[1729387164602,0.79198641,68223.0,68222.0,1.91560417]
[1729387164850,0.79198854,68223.0,68222.0,1.91560417]
[1729387165093,0.74827173,68223.0,68222.0,1.91560417]
[1729387165583,0.79198854,68223.0,68222.0,1.91560417]
[1729387167691,0.74827173,68223.0,68222.0,1.91560417]
[1729387174417,0.79385041,68223.0,68222.0,1.91560417]
[1729387175129,0.83757282,68223.0,68222.0,1.91560417]
[1729387175610,0.79385041,68223.0,68222.0,1.91560417]
[1729387177582,0.83757282,68223.0,68222.0,1.91560417]
[1729387179675,0.79385041,68223.0,68222.0,1.91560417]
[1729387180447,2.13941772,68223.0,68222.0,1.91560417]
[1729387180675,2.13945776,68223.0,68222.0,1.91560417]
[1729387180910,2.05198417,68223.0,68222.0,1.91560417]
[1729387182131,2.16127611,68223.0,68222.0,1.91560417]
[1729387183540,2.05198417,68223.0,68222.0,1.91560417]
[1729387183770,2.16134886,68223.0,68222.0,1.91560417]
[1729387185420,2.05198417,68223.0,68222.0,1.91560417]
[1729387186299,2.04105526,68223.0,68222.0,1.91560417]
[1729387186744,2.05201138,68223.0,68222.0,1.91560417]
[1729387187205,1.97067762,68223.0,68222.0,1.91560417]
[1729387187865,1.96567762,68223.0,68222.0,1.91560417]
[1729387188508,2.07507738,68223.0,68222.0,1.91560417]
[1729387189373,1.96567762,68223.0,68222.0,1.91560417]
[1729387190472,0.72217762,68223.0,68222.0,1.91560417]
[1729387193728,0.72217835,68223.0,68222.0,1.91560417]
[1729387195115,0.72217881,68223.0,68222.0,1.91560417]
[1729387200731,0.7112215,68223.0,68222.0,1.91560417]
[1729387200953,0.72217936,68223.0,68222.0,1.91560417]
[1729387201150,0.72217918,68223.0,68222.0,1.91560417]
[1729387201783,0.72417918,68223.0,68222.0,1.91560417]
[1729387202214,0.85563602,68223.0,68222.0,1.91560417]
[1729387204787,0.86026978,68223.0,68222.0,1.91560417]
[1729387205035,0.86526978,68223.0,68222.0,1.91560417]
[1729387206128,0.73381294,68223.0,68222.0,1.91560417]
[1729387206362,0.81461294,68223.0,68222.0,1.91560417]
[1729387206614,0.94609797,68223.0,68222.0,1.91560417]
[1729387206848,0.94609821,68223.0,68222.0,1.91560417]
[1729387207973,0.94409821,68223.0,68222.0,1.91560417]
[1729387208418,0.94609821,68223.0,68222.0,1.91560417]
[1729387209096,0.9231484,68223.0,68222.0,1.91560417]
[1729387209747,0.79166337,68223.0,68222.0,1.91560417]
[1729387209981,0.78966337,68223.0,68222.0,1.91560417]
[1729387210212,0.9231484,68223.0,68222.0,1.91560417]
[1729387210461,0.91315055,68223.0,68222.0,1.91560417]
[1729387210695,0.92315055,68223.0,68222.0,1.91560417]
[1729387210917,0.91315055,68223.0,68222.0,1.91560417]
[1729387211139,0.92315055,68223.0,68222.0,1.91560417]
[1729387213920,0.92315053,68223.0,68222.0,1.91560417]
[1729387214795,0.7916655,68223.0,68222.0,1.91560417]
[1729387216386,0.92315117,68223.0,68222.0,1.91560417]
[1729387217509,0.92315138,68223.0,68222.0,1.91560417]
[1729387220606,0.78966571,68223.0,68222.0,1.91560417]
[1729387221053,0.77870545,68223.0,68222.0,1.91560417]
[1729387221271,0.78966579,68223.0,68222.0,1.91560417]
[1729387224637,0.69790545,68223.0,68222.0,1.91560417]
[1729387224853,0.61476635,68223.0,68222.0,1.91560417]
[1729387226016,1.85826635,68223.0,68222.0,1.91560417]
[1729387227272,1.83563259,68223.0,68222.0,1.91560417]
[1729387227500,1.83063259,68223.0,68222.0,1.91560417]
[1729387228698,1.85363259,68223.0,68222.0,1.91560417]
[1729387231877,0.61013259,68223.0,68222.0,1.91560417]
[1729387235810,0.60513259,68223.0,68222.0,1.91560417]
[1729387239475,0.60513202,68223.0,68222.0,1.91560417]
[1729387243041,0.60513207,68223.0,68222.0,1.91560417]
[1729387245920,0.60013207,68223.0,68222.0,1.91560417]
[1729387246151,0.60513207,68223.0,68222.0,1.91560417]
[1729387246814,0.60613207,68223.0,68222.0,1.91560417]
[1729387247766,0.60113207,68223.0,68222.0,1.91560417]
[1729387247991,0.60613207,68223.0,68222.0,1.91560417]
[1729387248443,0.60513207,68223.0,68222.0,1.91560417]
[1729387250039,0.59417169,68223.0,68222.0,1.91560417]
[1729387250295,0.6051328,68223.0,68222.0,1.91560417]
[1729387253737,0.60513333,68223.0,68222.0,1.91560417]
[1729387255375,0.59417169,68223.0,68222.0,1.91560417]
[1729387256513,0.60513334,68223.0,68222.0,1.91560417]
[1729387258559,0.60513315,68223.0,68222.0,1.91560417]
[1729387262245,0.73666719,68223.0,68222.0,1.91560417]
[1729387262709,0.60513315,68223.0,68222.0,1.91560417]
[1729387264338,0.73666719,68223.0,68222.0,1.91560417]
[1729387264548,0.72570573,68223.0,68222.0,1.91560417]
[1729387264764,0.73666887,68223.0,68222.0,1.91560417]
[1729387265201,0.72570573,68223.0,68222.0,1.91560417]
[1729387265442,0.73666894,68223.0,68222.0,1.91560417]
[1729387265656,0.6051349,68223.0,68222.0,1.91560417]
[1729387265894,0.73668571,68223.0,68222.0,1.91560417]
[1729387266122,0.73668539,68223.0,68222.0,1.91560417]
[1729387267049,0.6051349,68223.0,68222.0,1.91560417]
[1729387267259,0.7367396,68223.0,68222.0,1.91560417]
[1729387268604,0.73677143,68223.0,68222.0,1.91560417]
[1729387268819,0.73677143,68223.0,68222.0,1.90461586]
[1729387269047,0.73676959,68223.0,68222.0,1.90461586]
[1729387270157,0.73176959,68223.0,68222.0,1.90461586]
[1729387271716,0.58917169,68223.0,68222.0,1.90461586]
[1729387271938,0.60014541,68223.0,68222.0,1.90461586]
[1729387272638,0.73479164,68223.0,68222.0,1.90461586]
[1729387273081,0.73479062,68223.0,68222.0,1.90461586]
[1729387273775,0.73477915,68223.0,68222.0,1.90461586]
[1729387275332,0.72380036,68223.0,68222.0,1.90461586]
[1729387275580,0.73477313,68223.0,68222.0,1.90461586]
[1729387275824,0.72380036,68223.0,68222.0,1.90461586]
[1729387276026,0.73477309,68223.0,68222.0,1.90461586]
[1729387276689,0.73477711,68223.0,68222.0,1.90461586]
[1729387278267,0.60314442,68223.0,68222.0,1.90461586]
[1729387278745,0.60314442,68223.0,68222.0,1.87560671]
[1729387278746,0.815905,68223.0,68222.0,1.87560671]
[1729387278961,0.73008662,68223.0,68222.0,1.87560671]
[1729387279222,0.82133705,68223.0,68222.0,1.87560671]
[1729387279453,2.02102861,68223.0,68222.0,1.87560671]
[1729387283250,2.02302861,68223.0,68222.0,1.87560671]
[1729387283483,2.02102861,68223.0,68222.0,1.87560671]
[1729387283717,2.01005588,68223.0,68222.0,1.87560671]
[1729387283953,2.02102384,68223.0,68222.0,1.87560671]
[1729387286474,2.02302384,68223.0,68222.0,1.87560671]
[1729387286689,2.02302322,68223.0,68222.0,1.87560671]
[1729387287600,2.17198237,68223.0,68222.0,1.87560671]
[1729387289218,2.02302322,68223.0,68222.0,1.86433599]
[1729387289417,2.08170122,68223.0,68222.0,1.87662995]
[1729387289635,2.07073388,68223.0,68222.0,1.87662995]
[1729387289848,2.08170129,68223.0,68222.0,1.87662995]
[1729387292599,2.08070129,68223.0,68222.0,1.87662995]
[1729387292865,2.08170129,68223.0,68222.0,1.87662995]
[1729387293373,2.07970129,68223.0,68222.0,1.87662995]
[1729387293615,2.07970295,68223.0,68222.0,1.87662995]
[1729387293831,1.90486919,68223.0,68222.0,1.87662995]
[1729387294057,1.97527378,68223.0,68222.0,1.87662995]
[1729387294283,1.97527488,68223.0,68222.0,1.87662995]
[1729387294498,1.84364076,68223.0,68222.0,1.87662995]
[1729387294938,1.9752769,68223.0,68222.0,1.87662995]
[1729387295399,1.84364076,68223.0,68222.0,1.87662995]
[1729387295857,1.84564076,68223.0,68222.0,1.87662995]
[1729387297223,0.60214076,68223.0,68222.0,1.87662995]
[1729387297460,0.60214066,68223.0,68222.0,1.87662995]
[1729387299039,0.73377258,68223.0,68222.0,1.87662995]
[1729387299252,0.60214066,68223.0,68222.0,1.87662995]
[1729387301778,0.60014066,68223.0,68222.0,1.87662995]
[1729387308318,0.58917169,68223.0,68222.0,1.87662995]
[1729387308554,0.6001411,68223.0,68222.0,1.87662995]
[1729387309315,0.6011411,68223.0,68222.0,1.87662995]
[1729387311543,0.60114106,68223.0,68222.0,1.87662995]
[1729387312052,1.03729876,68223.0,68222.0,1.2167669]
[1729387312297,1.03729876,68223.0,68222.0,0.84256494]
[1729387312298,2.19687774,68223.0,68222.0,0.84256494]
[1729387312548,2.33051416,68223.0,68222.0,0.79540071]
[1729387312775,2.19887774,68223.0,68222.0,0.76088471]
[1729387313021,2.34783689,68223.0,68222.0,0.64362071]
[1729387313266,2.68955556,68223.0,68222.0,0.38572119]
[1729387313516,2.38755556,68223.0,68222.0,0.31510375]
[1729387313754,2.38755556,68223.0,68222.0,0.11001393]
[1729387314232,2.34844558,68223.0,68222.0,0.11001393]
[1729387314470,2.36244558,68223.0,68222.0,0.11001393]
[1729387314688,2.40310629,68223.0,68222.0,0.08069593]
[1729387314926,0.52434976,68219.0,68218.0,0.02346392]
[1729387315157,2.53387215,68219.0,68218.0,0.02346392]
[1729387315382,2.57951252,68219.0,68218.0,0.02346392]
[1729387315642,2.59482081,68219.0,68218.0,0.02346392]
[1729387315872,2.59482081,68219.0,68218.0,9.2e-07]
[1729387316097,2.65641175,68219.0,68218.0,9.2e-07]
[1729387316322,2.67041175,68219.0,68218.0,9.2e-07]
[1729387316758,2.65945913,68219.0,68218.0,9.2e-07]
[1729387317683,2.67040488,68219.0,68218.0,9.2e-07]
[1729387318616,2.97240488,68219.0,68218.0,9.2e-07]
[1729387318836,2.98335021,68219.0,68218.0,9.2e-07]
[1729387320391,2.69185021,68219.0,68218.0,9.2e-07]
[1729387320610,0.02163376,68218.0,68217.0,1e-08]
[1729387320860,2.07367242,68218.0,68217.0,1e-08]
[1729387321530,2.02853924,68218.0,68217.0,1e-08]
[1729387321756,2.07356085,68218.0,68217.0,1e-08]
[1729387321990,2.08756085,68218.0,68217.0,1e-08]
[1729387322218,2.02853924,68218.0,68217.0,1e-08]
[1729387322445,2.03753924,68218.0,68217.0,1e-08]
[1729387322852,2.02659391,68218.0,68217.0,1e-08]
[1729387323323,2.03753504,68218.0,68217.0,1e-08]
[1729387323787,2.14124864,68218.0,68217.0,1e-08]
[1729387324760,0.37944176,68209.0,68205.0,0.22022551]
[1729387324977,0.74473143,68209.0,68205.0,0.22022551]
[1729387325200,0.6803114,68209.0,68182.0,0.146666]
[1729387325442,0.63529509,68209.0,68182.0,0.146666]
[1729387325665,0.63529509,68209.0,68181.0,0.000827]
[1729387325666,0.68030925,68209.0,68181.0,0.000827]
[1729387325914,0.8292684,68209.0,68181.0,0.147494]
[1729387326138,0.8292684,68209.0,68181.0,0.000827]
[1729387326362,0.8292684,68209.0,68181.0,0.147495]
[1729387326601,0.8292684,68209.0,68181.0,0.000827]
[1729387326836,2.0727684,68209.0,68181.0,0.147494]
[1729387327286,2.0737684,68209.0,68181.0,0.147494]
[1729387328174,2.0737684,68209.0,68182.0,0.146666]
[1729387328394,2.0737684,68209.0,68181.0,0.000827]
[1729387328614,2.0737684,68209.0,68181.0,0.147494]
[1729387328830,2.0737684,68209.0,68182.0,0.146665]
[1729387329295,2.0737684,68209.0,68191.0,0.22022551]
[1729387329513,2.0737684,68209.0,68198.0,0.040466]
[1729387329514,0.274629,68199.0,68198.0,0.040466]
[1729387329770,0.53231972,68199.0,68198.0,0.040466]
[1729387329993,0.52137859,68199.0,68198.0,0.040466]
[1729387330459,0.52137859,68199.0,68198.0,0.011266]
[1729387330460,0.88982673,68199.0,68198.0,0.011266]
[1729387330686,1.06003628,68199.0,68198.0,0.011266]
[1729387330905,0.8671234,68199.0,68198.0,0.011266]
[1729387331156,0.88243169,68199.0,68198.0,0.011266]
[1729387332066,0.88843169,68199.0,68198.0,0.011266]
[1729387333228,0.99169459,68199.0,68198.0,0.011266]
[1729387333468,1.00569459,68199.0,68198.0,0.011266]
[1729387333692,0.99169459,68199.0,68198.0,0.011266]
[1729387334128,1.00569459,68199.0,68198.0,0.011266]
[1729387334570,0.98380151,68199.0,68198.0,0.011266]
[1729387334798,0.9838018,68199.0,68198.0,0.011266]
[1729387335034,0.59991183,68199.0,68198.0,0.011266]
[1729387335261,0.66543432,68199.0,68198.0,0.011266]
[1729387335494,0.59991183,68199.0,68198.0,0.011266]
[1729387335712,0.64558957,68199.0,68198.0,0.011266]
[1729387335921,0.69552009,68199.0,68198.0,0.011266]
[1729387336394,0.69352009,68199.0,68198.0,0.011266]
[1729387337071,0.69552009,68199.0,68198.0,0.011266]
[1729387337781,0.59527807,68199.0,68198.0,0.011266]
[1729387338022,0.55196978,68199.0,68198.0,0.089866]
[1729387338251,0.55196978,68199.0,68198.0,0.18813224]
[1729387338252,0.42331369,68199.0,68198.0,0.18813224]
[1729387338930,0.42331369,68199.0,68198.0,0.17686624]
[1729387339615,0.52331369,68199.0,68198.0,0.17686624]
[1729387339841,0.42331369,68199.0,68198.0,0.17686624]
[1729387340833,0.40931369,68199.0,68198.0,0.17686624]
[1729387341575,0.50931369,68199.0,68198.0,0.17769324]
[1729387341802,0.51096769,68199.0,68198.0,0.17769324]
[1729387342925,0.51097634,68199.0,68198.0,0.17769324]
[1729387348448,0.50003259,68199.0,68198.0,0.17769324]
[1729387348675,0.51097359,68199.0,68198.0,0.17769324]
[1729387349763,0.51097359,68199.0,68198.0,0.07979324]
[1729387349982,0.51097359,68199.0,68198.0,0.079427]
[1729387350428,0.51097359,68199.0,68198.0,0.07979324]
[1729387351077,0.51097359,68199.0,68198.0,0.079427]
[1729387351296,0.51097359,68199.0,68198.0,0.00119324]
[1729387351542,0.51097359,68199.0,68198.0,0.000827]
[1729387351760,0.53397359,68199.0,68198.0,0.000827]
[1729387351976,0.52303259,68199.0,68198.0,0.000827]
[1729387352191,0.53397271,68199.0,68198.0,0.000827]
[1729387352628,0.53860647,68199.0,68198.0,0.000827]
[1729387353527,1.78210647,68199.0,68198.0,0.000827]
[1729387356010,2.01136562,68199.0,68198.0,0.000827]
[1729387359358,1.86240647,68199.0,68198.0,0.000827]
[1729387360739,1.94999767,68199.0,68198.0,0.000827]
[1729387361433,1.86240647,68199.0,68198.0,0.000827]
[1729387362637,1.94999501,68199.0,68198.0,0.000827]
[1729387362860,1.94999639,68199.0,68198.0,0.000827]
[1729387363347,1.86240647,68199.0,68198.0,0.000827]
[1729387363350,1.9499923,68199.0,68198.0,0.000827]
[1729387363579,2.09895145,68199.0,68198.0,0.000827]
[1729387363817,2.09896096,68199.0,68198.0,0.000827]
[1729387366577,1.86970181,68199.0,68198.0,0.000827]
[1729387366803,1.77748222,68199.0,68198.0,0.000827]
[1729387367059,1.76653259,68199.0,68198.0,0.000827]
[1729387367292,1.79995147,68199.0,68198.0,0.000827]
[1729387367532,1.8656491,68199.0,68198.0,0.000827]
[1729387368239,1.86101534,68199.0,68198.0,0.000827]
[1729387368904,1.8656491,68199.0,68198.0,0.000827]
[1729387370049,1.77748671,68199.0,68198.0,0.000827]
[1729387371207,0.53398671,68199.0,68198.0,0.000827]
[1729387371909,0.59968434,68199.0,68198.0,0.000827]
[1729387372345,0.53398671,68199.0,68198.0,0.000827]
[1729387372783,0.59968434,68199.0,68198.0,0.000827]
[1729387372996,0.53398671,68199.0,68198.0,0.000827]
[1729387374329,0.57776819,68199.0,68198.0,0.000827]
[1729387374560,0.53398671,68199.0,68198.0,0.000827]
[1729387375033,0.53398978,68199.0,68198.0,0.000827]
[1729387376435,0.53398978,68199.0,68198.0,0.00119324]
[1729387376436,0.51098978,68199.0,68198.0,0.00119324]
[1729387376656,0.51098978,68199.0,68198.0,0.07869324]
[1729387378283,0.50003259,68199.0,68198.0,0.07869324]
[1729387378508,0.51099293,68199.0,68198.0,0.07869324]
[1729387378731,0.52195329,68199.0,68198.0,0.07869324]
[1729387378950,0.51099293,68199.0,68198.0,0.07869324]
[1729387379171,0.52195386,68199.0,68198.0,0.08914884]
[1729387379410,0.25936452,68199.0,68198.0,0.08914884]
[1729387379657,0.25936452,68199.0,68198.0,0.32737984]
[1729387381015,0.25936452,68199.0,68198.0,0.33237984]
[1729387385207,0.24840359,68199.0,68198.0,0.33237984]
[1729387388213,0.09944444,68199.0,68198.0,0.33737984]
[1729387388434,0.001654,68199.0,68198.0,0.33737984]
[1729387397856,0.001654,68199.0,68198.0,0.33937984]
[1729387407417,0.001654,68199.0,68198.0,0.33737984]
[1729387408264,0.001654,68199.0,68198.0,0.33937984]
[1729387415428,0.001654,68199.0,68198.0,0.33737984]
[1729387420825,0.001654,68199.0,68198.0,0.33937984]
[1729387421505,0.001654,68199.0,68198.0,0.33737984]
[1729387421934,0.001654,68199.0,68198.0,0.33937984]
[1729387422097,0.001654,68199.0,68198.0,0.33737984]
[1729387422507,0.001654,68199.0,68198.0,0.33937984]
[1729387422704,0.001654,68199.0,68198.0,0.33737984]
[1729387426670,0.001654,68199.0,68198.0,0.33937984]
[1729387427374,0.001654,68199.0,68198.0,0.33737984]
[1729387427569,0.001654,68199.0,68198.0,0.33937984]
[1729387428479,0.001654,68199.0,68198.0,0.42708234]
[1729387428794,0.001654,68199.0,68198.0,0.33937984]
[1729387429717,0.001654,68199.0,68198.0,0.16827984]
[1729387430199,0.001654,68199.0,68198.0,0.17027984]
[1729387430670,0.001654,68199.0,68198.0,0.28002075]
[1729387430904,0.001654,68199.0,68198.0,0.17027984]
[1729387431360,0.001654,68199.0,68198.0,0.28002075]
[1729387431583,0.001654,68199.0,68198.0,0.17027984]
[1729387434406,0.001654,68199.0,68198.0,0.16827984]
[1729387435327,0.001654,68199.0,68198.0,0.27814365]
[1729387436273,0.001654,68199.0,68198.0,0.16827984]
[1729387439001,0.001654,68199.0,68198.0,0.2781627]
[1729387439284,0.001654,68199.0,68198.0,0.16827984]
[1729387439988,0.01096962,68206.0,68205.0,0.01036624]
[1729387440272,0.0931,68207.0,68206.0,0.146614]
[1729387440509,0.10406972,68207.0,68206.0,0.146614]
[1729387440712,0.20303874,68207.0,68206.0,0.15866082]
[1729387441937,0.19206902,68207.0,68206.0,0.15866082]
[1729387442172,0.20303904,68207.0,68206.0,0.15866082]
[1729387444430,0.35199819,68207.0,68206.0,0.15866082]
[1729387444895,0.3519985,68207.0,68206.0,0.20262304]
[1729387445177,0.3536525,68207.0,68206.0,0.20262304]
[1729387445409,0.34268217,68207.0,68206.0,0.15866082]
[1729387445633,0.34268217,68207.0,68206.0,0.20262469]
[1729387445871,0.34268217,68207.0,68206.0,0.15866082]
[1729387446097,0.34268217,68207.0,68206.0,0.20262431]
[1729387446318,0.34268217,68207.0,68206.0,0.15866082]
[1729387446599,0.35365248,68207.0,68206.0,0.20262451]
[1729387446816,0.24958217,68207.0,68206.0,0.22996638]
[1729387447270,0.24958217,68207.0,68206.0,0.16402706]
[1729387447493,0.24958217,68207.0,68206.0,0.25194616]
[1729387449494,0.001654,68207.0,68206.0,0.25194616]
[1729387449987,0.001654,68207.0,68206.0,0.16402706]
[1729387450426,0.001654,68207.0,68206.0,0.25195134]
[1729387450647,0.001654,68207.0,68206.0,0.16402706]
[1729387450868,0.001654,68207.0,68206.0,0.27392593]
[1729387451310,0.001654,68207.0,68206.0,0.16402706]
[1729387452476,0.001654,68207.0,68206.0,0.27392593]
[1729387452995,0.001654,68207.0,68206.0,0.16402706]
[1729387454884,0.001654,68207.0,68206.0,0.27392593]
[1729387455610,0.001654,68207.0,68206.0,0.16402706]
[1729387456305,0.001654,68207.0,68206.0,0.26732706]
[1729387457889,0.001654,68207.0,68206.0,0.27025857]
[1729387458119,0.001654,68207.0,68206.0,0.26732706]
[1729387471365,0.001654,68207.0,68206.0,0.37707003]
[1729387471581,0.001654,68207.0,68206.0,0.37706867]
[1729387472481,0.001654,68207.0,68206.0,0.26732706]
[1729387473823,0.001654,68207.0,68206.0,0.37706402]
[1729387474053,0.001654,68207.0,68206.0,0.26732706]
[1729387476127,0.001654,68207.0,68206.0,0.37706196]
[1729387476800,0.001654,68207.0,68206.0,0.26732706]
[1729387477918,0.001654,68207.0,68206.0,0.17102706]
[1729387478372,0.001654,68207.0,68206.0,0.28076076]
[1729387479273,0.001654,68207.0,68206.0,0.17102706]
[1729387479499,0.001654,68207.0,68206.0,0.28076143]
[1729387479945,0.001654,68207.0,68206.0,0.17102706]
[1729387480351,0.001654,68207.0,68206.0,0.28076244]
[1729387480566,0.001654,68207.0,68206.0,0.17102706]
[1729387481431,0.001654,68207.0,68206.0,0.28076388]
[1729387481636,0.001654,68207.0,68206.0,0.17102706]
[1729387494277,0.001654,68207.0,68206.0,0.46976997]
[1729387494473,0.001654,68207.0,68206.0,0.46683845]
[1729387503491,0.001654,68207.0,68206.0,0.46681563]
[1729387504467,0.001654,68207.0,68206.0,0.46681533]
[1729387504699,0.001654,68207.0,68206.0,0.42102706]
[1729387505364,0.001654,68207.0,68206.0,0.46681481]
[1729387506057,0.001654,68207.0,68206.0,0.46191481]
[1729387513440,0.001654,68207.0,68206.0,0.6566011]
[1729387513666,0.001654,68207.0,68206.0,0.46191481]
[1729387514359,0.001654,68207.0,68206.0,0.65658899]
[1729387515084,0.001654,68207.0,68206.0,0.46191481]
[1729387516473,0.007654,68207.0,68206.0,0.46191481]
[1729387521112,0.007654,68207.0,68206.0,0.656522]
[1729387521332,0.007654,68207.0,68206.0,0.46191481]
[1729387523177,0.007654,68207.0,68206.0,0.4838054]
[1729387523899,0.007654,68207.0,68206.0,0.65650691]
[1729387527725,0.007654,68207.0,68206.0,0.46191481]
[1729387529723,0.007654,68207.0,68206.0,0.65652032]
[1729387530016,0.007654,68207.0,68206.0,0.46191481]
[1729387532467,0.007654,68207.0,68206.0,0.65652032]
[1729387532682,0.007654,68207.0,68206.0,0.46191481]
[1729387532889,0.007654,68207.0,68206.0,0.65652032]
[1729387533119,0.007654,68207.0,68206.0,0.46191481]
[1729387534455,0.007654,68207.0,68206.0,0.65652933]
[1729387534688,0.007654,68207.0,68206.0,0.6565305]
[1729387535833,0.007654,68207.0,68206.0,0.65653861]
[1729387536052,0.007654,68207.0,68206.0,0.46191481]
[1729387536308,0.007654,68207.0,68206.0,0.65737246]
[1729387537895,0.007654,68207.0,68206.0,0.46274181]
[1729387541075,0.007654,68207.0,68206.0,0.65740525]
[1729387541292,0.007654,68207.0,68206.0,0.46274181]
[1729387542688,0.007654,68207.0,68206.0,0.46074181]
[1729387542860,0.007654,68207.0,68206.0,0.65740733]
[1729387546657,0.007654,68207.0,68206.0,0.65742171]
[1729387548162,0.007654,68207.0,68206.0,0.46274181]
[1729387548395,0.007654,68207.0,68206.0,0.65742975]
[1729387551432,0.007654,68207.0,68206.0,0.65745243]
[1729387552365,0.007654,68207.0,68206.0,0.46274181]
[1729387554666,0.007654,68207.0,68206.0,0.65748057]
[1729387557653,0.007654,68207.0,68206.0,0.46274181]
[1729387571259,0.22022551,68216.0,68215.0,0.15896124]
[1729387571686,0.31312551,68216.0,68215.0,0.17086417]
[1729387571899,0.0929,68216.0,68215.0,0.16886417]
[1729387572117,0.0929,68216.0,68215.0,0.17086417]
[1729387574674,0.0929,68216.0,68215.0,0.30077362]
[1729387575209,0.0929,68216.0,68215.0,0.16886417]
[1729387578001,0.0929,68216.0,68215.0,0.30077362]
[1729387579231,0.0929,68216.0,68215.0,0.16886417]
[1729387580565,0.0929,68216.0,68215.0,0.30077362]
[1729387580791,0.0929,68216.0,68215.0,0.16886417]
[1729387581025,0.0929,68216.0,68215.0,0.30077922]
[1729387581955,0.0929,68216.0,68215.0,0.16886417]
[1729387582898,0.0929,68216.0,68215.0,0.30077922]
[1729387585583,0.0929,68216.0,68215.0,0.16886417]
[1729387586036,0.0929,68216.0,68215.0,0.30078284]
[1729387586288,0.0929,68216.0,68215.0,0.16886417]
[1729387587413,0.0929,68216.0,68215.0,0.30078284]
[1729387587914,0.0929,68216.0,68215.0,0.16886417]
[1729387588132,0.076,68217.0,68216.0,0.01036624]
[1729387588330,0.076,68217.0,68216.0,0.15695924]
[1729387588585,0.076,68217.0,68216.0,0.16885886]
[1729387594835,0.077654,68217.0,68216.0,0.16885886]
[1729387608389,0.077654,68217.0,68216.0,0.16968586]
[1729387609218,0.077654,68217.0,68216.0,0.30162161]
[1729387610592,0.077654,68217.0,68216.0,0.16968586]
[1729387616726,0.077654,68217.0,68216.0,0.30162378]
[1729387617140,0.077654,68217.0,68216.0,0.16968586]
[1729387617988,0.001654,68217.0,68216.0,0.30162378]
[1729387618427,0.001654,68217.0,68216.0,0.16968586]
[1729387624648,0.001654,68217.0,68216.0,0.30162378]
[1729387625284,0.001654,68217.0,68216.0,0.16968586]
[1729387625509,0.001654,68217.0,68216.0,0.30162378]
[1729387630280,0.001654,68217.0,68216.0,0.30655527]
[1729387630497,0.001654,68217.0,68216.0,0.58393062]
[1729387630717,0.001654,68217.0,68216.0,0.38618454]
[1729387632346,0.001654,68217.0,68216.0,0.5807904]
[1729387632820,0.001654,68217.0,68216.0,0.38618454]
[1729387633028,0.001654,68217.0,68216.0,0.30938454]
[1729387633952,0.001654,68217.0,68216.0,0.26358586]
[1729387636892,0.001654,68217.0,68216.0,0.26158586]
[1729387638033,0.001654,68217.0,68216.0,0.26358586]
[1729387644180,0.001654,68217.0,68216.0,0.30932165]
[1729387644388,0.001654,68217.0,68216.0,0.26358586]
[1729387657043,0.001654,68217.0,68216.0,0.26158586]
[1729387657688,0.001654,68217.0,68216.0,0.26358586]
[1729387658409,0.001654,68217.0,68216.0,0.30934034]
[1729387664866,0.001654,68217.0,68216.0,0.30734034]
[1729387667788,0.001654,68217.0,68216.0,0.30934034]
[1729387669976,0.001654,68217.0,68216.0,0.21544034]
[1729387676607,0.001654,68217.0,68216.0,0.21744034]
[1729387679059,0.001654,68217.0,68216.0,0.4122089]
[1729387679764,0.001654,68217.0,68216.0,0.41221355]
[1729387679982,0.001654,68217.0,68216.0,0.41221351]
[1729387680417,0.001654,68217.0,68216.0,0.21744034]
[1729387684517,0.001654,68217.0,68216.0,0.22037187]
[1729387686564,0.001654,68217.0,68216.0,0.41221864]
[1729387686786,0.001654,68217.0,68216.0,0.21744034]
[1729387687005,0.001654,68217.0,68216.0,0.41221527]
[1729387687225,0.001654,68217.0,68216.0,0.21744034]
[1729387687444,0.001654,68217.0,68216.0,0.41221404]
[1729387690445,0.001654,68217.0,68216.0,0.41220677]
[1729387691334,0.001654,68217.0,68216.0,0.21744034]
[1729387694409,0.001654,68217.0,68216.0,0.41218309]
[1729387695491,0.001654,68217.0,68216.0,0.21744034]
[1729387699075,0.001654,68217.0,68216.0,0.4121603]
[1729387700267,0.001654,68217.0,68216.0,0.41215653]
[1729387700506,0.001654,68217.0,68216.0,0.39694034]
[1729387703341,0.001654,68217.0,68216.0,0.41875987]
[1729387704715,0.001654,68217.0,68216.0,0.63898538]
[1729387705000,0.001654,68223.0,68216.0,0.63898538]
[1729387705001,0.001654,68223.0,68222.0,0.44186624]
[1729387705234,0.001654,68223.0,68222.0,0.80615987]
[1729387705494,0.001654,68223.0,68222.0,0.81814315]
[1729387712256,0.001654,68223.0,68222.0,1.01248625]
[1729387714733,0.001654,68223.0,68222.0,1.01244729]
[1729387717691,0.001654,68223.0,68222.0,0.81814315]
[1729387721757,0.001654,68223.0,68222.0,1.01244729]
[1729387722679,0.001654,68223.0,68222.0,0.81814315]
[1729387726143,0.001654,68223.0,68222.0,0.73794315]
[1729387729128,0.001654,68223.0,68222.0,0.93217831]
[1729387729363,0.001654,68223.0,68222.0,0.93218731]
[1729387730260,0.001654,68223.0,68222.0,0.73794315]
[1729387730714,0.001654,68223.0,68222.0,0.93218731]
[1729387731615,0.001654,68223.0,68222.0,0.73794315]
[1729387731848,0.001654,68223.0,68222.0,0.93218731]
[1729387732785,0.001654,68223.0,68222.0,0.73794315]
[1729387734377,0.001654,68223.0,68222.0,0.93222727]
[1729387734609,0.001654,68223.0,68222.0,0.73794315]
[1729387754725,0.001654,68223.0,68222.0,0.63864315]
[1729387778688,0.001654,68223.0,68222.0,0.78701743]
[1729387779121,0.001654,68223.0,68222.0,0.63864315]
[1729387793527,0.001654,68223.0,68222.0,0.78702615]
[1729387793740,0.001654,68223.0,68222.0,0.63864315]
[1729387795103,0.001654,68223.0,68222.0,0.78702615]
[1729387795562,0.001654,68223.0,68222.0,0.63864315]
[1729387802195,0.001654,68223.0,68222.0,0.78702458]
[1729387802620,0.001654,68223.0,68222.0,0.63864315]
[1729387803284,0.001654,68223.0,68222.0,0.78702458]
[1729387803937,0.001654,68223.0,68222.0,0.63864315]
[1729387804607,0.001654,68223.0,68222.0,0.78702458]
[1729387804825,0.001654,68223.0,68222.0,0.63364315]
[1729387805039,0.001654,68223.0,68222.0,0.63864315]
[1729387807061,0.001654,68223.0,68222.0,0.78702458]
[1729387808350,0.001654,68223.0,68222.0,0.63864315]
[1729387808814,0.001654,68223.0,68222.0,0.78702458]
[1729387809251,0.001654,68223.0,68222.0,0.86012458]
[1729387809894,0.001654,68223.0,68222.0,0.71174315]
[1729387816731,0.001654,68223.0,68222.0,0.86012341]